bitfinex-derivatives/quotes_SOLF0:USTF0_20250625
["timestamp","ask_amount","ask_price","bid_price","bid_amount"]
[1750833302104,34.88,146.41,146.39,6.8279]
[1750833305611,34.88,146.41,146.4,6.8275]
[1750833306396,45.0833219,146.44,146.4,6.8275]
[1750833306596,38.2574219,146.44,146.37,3.3574219]
[1750833306804,34.9,146.44,146.37,3.3574219]
[1750833307105,38.2574219,146.44,146.37,3.3574219]
[1750833307307,38.2574219,146.44,146.39,6.8278]
[1750833307605,6.8271,146.41,146.35,3.3574219]
[1750833307800,3.3574219,146.42,146.37,6.8289]
[1750833308000,6.8279,146.4,146.37,6.8289]
[1750833308300,38.2574219,146.4,146.35,6.8294]
[1750833308501,38.2574219,146.4,146.34,2.2607]
[1750833308701,6.8285,146.38,146.34,2.2607]
[1750833309006,38.2574219,146.4,146.34,2.2607]
[1750833309007,38.2574219,146.4,146.36,6.8293]
[1750833309507,6.8282,146.39,146.36,6.8293]
[1750833309708,38.2574219,146.4,146.37,6.8289]
[1750833310501,41.7278,146.4,146.37,6.8289]
[1750833311606,6.8281,146.39,146.36,6.8292]
[1750833312202,6.8287,146.38,146.35,6.8296]
[1750833312409,6.8287,146.38,146.33,34.88]
[1750833312704,15.67401541,146.39,146.36,6.8293]
[1750833313613,41.7278,146.4,146.37,6.8287]
[1750833315813,6.828,146.39,146.36,6.8292]
[1750833316906,41.7278,146.4,146.37,6.8289]
[1750833318217,41.7278,146.4,146.33,37.1956]
[1750833319109,41.7278,146.4,146.37,6.8287]
[1750833319309,34.9,146.43,146.36,3.3574219]
[1750833319620,34.9,146.43,146.38,3.3574219]
[1750833319808,34.9,146.43,146.42,6.8266]
[1750833321414,40.37412866,146.43,146.42,6.8266]
[1750833323012,40.37412866,146.43,146.36,3.3574219]
[1750833323208,5.47412866,146.42,146.36,3.3574219]
[1750833323812,5.47412866,146.42,146.4,6.8275]
[1750833324413,41.7264,146.43,146.4,6.8275]
[1750833325219,34.9,146.43,146.4,6.8275]
[1750833327120,41.7262,146.43,146.39,6.8278]
[1750833327309,34.9,146.43,146.36,3.3574219]
[1750833327625,41.7263,146.43,146.39,6.8279]
[1750833327823,3.3574219,146.42,146.39,6.8279]
[1750833328322,8.84907194,146.42,146.39,6.8279]
[1750833328620,15.67567194,146.42,146.38,6.8283]
[1750833329219,6.8271,146.41,146.37,6.8288]
[1750833329520,8.84907194,146.42,146.34,3.3574219]
[1750833330023,15.67597194,146.42,146.38,6.8282]
[1750833331117,6.8272,146.41,146.37,6.8288]
[1750833332123,3.3574219,146.4,146.34,3.3574219]
[1750833332620,3.3574219,146.4,146.33,37.1956]
[1750833332827,34.72,146.39,146.33,34.88]
[1750833333322,41.5482,146.39,146.33,34.88]
[1750833334026,41.5482,146.39,146.35,6.8296]
[1750833334330,34.72,146.39,146.33,34.88]
[1750833334827,34.72,146.39,146.35,6.8295]
[1750833335029,34.72,146.39,146.33,38.2374219]
[1750833335218,3.3574219,146.38,146.33,34.88]
[1750833335420,3.3574219,146.38,146.35,6.8297]
[1750833335729,34.72,146.39,146.33,34.88]
[1750833335923,34.72,146.39,146.35,6.8296]
[1750833336228,41.5482,146.39,146.35,6.8296]
[1750833339125,34.72,146.39,146.31,4.6878]
[1750833339327,3.3574219,146.34,146.28,49.56641123]
[1750833339631,38.0774219,146.34,146.27,123.82029074]
[1750833339932,3.3574219,146.32,146.25,4.6409]
[1750833340124,3.3574219,146.32,146.25,2.3396]
[1750833340523,3.3574219,146.3,146.25,2.3396]
[1750833340925,3.3574219,146.3,146.27,6.8333]
[1750833341123,3.3574219,146.32,146.25,2.3396]
[1750833341328,34.72,146.34,146.28,3.3574219]
[1750833341525,34.72,146.34,146.31,6.8314]
[1750833341836,34.72,146.34,146.28,5.6794219]
[1750833342033,34.72,146.37,146.3,3.3574219]
[1750833343326,34.72,146.37,146.36,6.8294]
[1750833344229,34.72,146.37,146.3,10.68898698]
[1750833344434,34.72,146.37,146.3,2.28]
[1750833345026,34.72,146.37,146.33,3.3574219]
[1750833345632,37.1066,146.4,146.33,3.3574219]
[1750833346438,37.1066,146.4,146.37,6.8287]
[1750833347329,3.3574219,146.39,146.31,34.72]
[1750833347530,3.3574219,146.37,146.31,34.72]
[1750833347829,3.3574219,146.37,146.34,6.8301]
[1750833348833,3.3574219,146.37,146.35,6.8297]
[1750833349029,2.3145,146.38,146.3,3.3574219]
[1750833349236,3.3574219,146.39,146.3,3.3574219]
[1750833349432,3.3574219,146.39,146.3,7.9400219]
[1750833349633,3.3574219,146.39,146.32,3.3574219]
[1750833349933,37.1066,146.4,146.32,3.3574219]
[1750833350134,37.1066,146.4,146.32,38.0774219]
[1750833350642,37.1066,146.4,146.34,3.3574219]
[1750833350839,34.72,146.4,146.39,6.828]
[1750833351040,34.72,146.4,146.34,3.3574219]
[1750833351041,40.3390219,146.43,146.36,3.3574219]
[1750833351238,38.0774219,146.43,146.41,6.8266]
[1750833351444,38.0774219,146.43,146.36,3.3574219]
[1750833351845,38.0774219,146.43,146.41,6.8268]
[1750833352940,3.3574219,146.42,146.33,2.418]
[1750833353138,34.72,146.43,146.35,3.3574219]
[1750833353641,627.0429,146.46,146.39,3.3574219]
[1750833353840,34.72,146.46,146.39,3.3574219]
[1750833354036,3.3574219,146.43,146.39,6.8276]
[1750833354746,10.1839219,146.43,146.38,6.8283]
[1750833356248,3.3574219,146.41,146.33,8.1842219]
[1750833356440,3.3574219,146.41,146.33,42.9042219]
[1750833356634,10.1847219,146.41,146.36,6.8291]
[1750833357849,10.1847219,146.41,146.37,6.8288]
[1750833359942,6.8273,146.41,146.37,6.8288]
[1750833360141,3.3574219,146.41,146.33,42.9042219]
[1750833360546,3.3574219,146.41,146.39,6.8279]
[1750833360942,3.3574219,146.41,146.33,39.5468]
[1750833361143,38.0774219,146.42,146.39,6.8277]
[1750833361651,44.9041219,146.42,146.38,6.8283]
[1750833362650,6.8271,146.41,146.37,6.8288]
[1750833362850,3.3574219,146.4,146.37,6.8288]
[1750833364045,34.72,146.42,146.39,6.828]
[1750833364350,34.72,146.42,146.35,3.3574219]
[1750833365038,34.72,146.42,146.39,6.8277]
[1750833365751,34.72,146.42,146.4,6.8273]
[1750833366846,34.72,146.42,146.41,6.827]
[1750833368953,34.72,146.42,146.4,6.8273]
[1750833369455,34.72,146.42,146.33,39.5468]
[1750833369752,3.3574219,146.41,146.34,3.3574219]
[1750833370147,6.8278,146.4,146.36,6.8289]
[1750833372853,6.8272,146.41,146.37,6.8285]
[1750833373055,38.0774219,146.42,146.37,6.8285]
[1750833373351,6.8279,146.4,146.36,6.8292]
[1750833373553,38.0774219,146.42,146.36,6.8292]
[1750833374055,3.3574219,146.4,146.33,39.5468]
[1750833374255,3.3574219,146.4,146.33,34.72]
[1750833375049,6.8289,146.38,146.34,6.8301]
[1750833375752,3.3574219,146.38,146.33,6.8306]
[1750833375942,38.4774219,146.38,146.3,40.7472219]
[1750833376856,6.8297,146.36,146.32,6.831]
[1750833380357,6.8299,146.35,146.32,6.831]
[1750833380655,38.4774219,146.38,146.32,6.831]
[1750833380954,6.8295,146.36,146.32,6.831]
[1750833381156,35.12,146.38,146.3,40.7472219]
[1750833381354,3.3574219,146.37,146.3,40.7472219]
[1750833381760,6.8294,146.36,146.32,6.831]
[1750833384259,6.8294,146.36,146.33,6.8308]
[1750833384462,6.8299,146.35,146.3,37.3898]
[1750833385360,6.8299,146.35,146.32,6.8309]
[1750833388768,6.8296,146.36,146.33,6.8308]
[1750833397378,3.3574219,146.37,146.3,35.12]
[1750833397579,8.80994245,146.37,146.3,35.12]
[1750833397779,6.8305,146.34,146.31,6.8316]
[1750833400274,10.1877219,146.35,146.28,4.7103]
[1750833400701,3.3574219,146.35,146.28,4.7103]
[1750833401287,6.8303,146.34,146.32,6.8311]
[1750833402588,35.12,146.38,146.32,3.3574219]
[1750833402777,35.12,146.38,146.3,3.3574219]
[1750833403387,6.8291,146.37,146.34,6.8303]
[1750833403881,6.8301,146.35,146.32,6.831]
[1750833404076,6.8301,146.35,146.28,8.0677219]
[1750833404281,3.3574219,146.37,146.28,8.0677219]
[1750833404680,6.8296,146.36,146.33,6.8305]
[1750833405282,6.8299,146.35,146.33,6.8305]
[1750833405877,6.8304,146.34,146.32,6.831]
[1750833408592,10.1875219,146.35,146.32,6.831]
[1750833409784,10.1875219,146.35,146.28,4.7103]
[1750833410391,10.1875219,146.35,146.32,6.831]
[1750833416795,6.8296,146.36,146.33,6.8307]
[1750833417000,5.45216727,146.37,146.31,38.1574219]
[1750833417189,35.12,146.38,146.33,3.3574219]
[1750833417388,35.12,146.38,146.36,6.8291]
[1750833417594,35.12,146.38,146.33,3.3574219]
[1750833418094,35.12,146.38,146.33,5.7166219]
[1750833418292,35.12,146.38,146.37,6.8289]
[1750833418695,35.12,146.38,146.33,5.7166219]
[1750833418886,38.4774219,146.38,146.32,2.3851]
[1750833419086,3.3574219,146.36,146.32,2.3851]
[1750833419699,6.8297,146.36,146.32,2.3851]
[1750833420197,6.8299,146.35,146.32,9.2163]
[1750833420396,6.8299,146.35,146.31,34.8]
[1750833421296,6.8299,146.35,146.32,6.8311]
[1750833421499,6.8296,146.36,146.31,34.8]
[1750833421894,3.3574219,146.37,146.31,34.8]
[1750833422291,6.8296,146.36,146.33,6.8307]
[1750833423300,10.1865219,146.37,146.34,6.8302]
[1750833423696,38.4774219,146.38,146.31,38.1574219]
[1750833424296,6.829,146.37,146.34,6.8299]
[1750833424794,38.4774219,146.38,146.35,6.8298]
[1750833425096,38.4774219,146.38,146.31,38.1574219]
[1750833425603,6.8292,146.37,146.34,6.8302]
[1750833425804,5.48072495,146.37,146.31,34.8]
[1750833426303,10.1870219,146.36,146.33,6.8305]
[1750833426895,6.8299,146.35,146.32,6.8311]
[1750833427294,6.8299,146.35,146.31,34.8]
[1750833427501,10.1869219,146.36,146.33,6.8308]
[1750833429806,3.3574219,146.36,146.29,42.6784219]
[1750833430010,12.30585805,146.37,146.34,6.8303]
[1750833431414,6.8291,146.37,146.34,6.8303]
[1750833432417,6.8298,146.36,146.3,3.3574219]
[1750833432616,38.4774219,146.38,146.3,3.3574219]
[1750833432806,6.8299,146.35,146.32,6.831]
[1750833433110,38.4774219,146.38,146.3,3.3574219]
[1750833433311,5.47698668,146.37,146.3,3.3574219]
[1750833433513,12.30588668,146.37,146.34,6.83]
[1750833434115,6.8289,146.37,146.34,6.83]
[1750833436417,6.8294,146.36,146.34,6.83]
[1750833438712,6.8294,146.36,146.33,6.8306]
[1750833439019,6.8308,146.33,146.29,2.2418]
[1750833439209,3.36125111,146.36,146.29,2.2418]
[1750833439414,8.83934885,146.36,146.29,2.2418]
[1750833439716,6.8301,146.35,146.29,2.2418]
[1750833440019,8.83934885,146.36,146.29,2.2418]
[1750833440214,6.8303,146.34,146.29,2.2418]
[1750833441110,6.8303,146.34,146.31,6.8313]
[1750833441919,6.8303,146.34,146.32,6.8311]
[1750833442121,6.8299,146.35,146.29,2.2418]
[1750833442721,6.8299,146.35,146.32,6.8311]
[1750833444931,6.8304,146.34,146.32,6.8311]
[1750833446634,6.8304,146.34,146.31,6.8315]
[1750833446932,6.8304,146.34,146.29,2.2418]
[1750833447334,6.8301,146.35,146.32,6.8311]
[1750833447939,6.8304,146.34,146.32,6.8311]
[1750833448742,6.8301,146.35,146.32,6.8311]
[1750833453336,44.91065752,146.36,146.33,6.8305]
[1750833453542,44.91065752,146.36,146.29,2.2418]
[1750833453742,44.91065752,146.36,146.29,36.9018]
[1750833454041,41.5495,146.36,146.33,6.8304]
[1750833454946,6.8299,146.35,146.32,6.831]
[1750833455844,12.29624633,146.35,146.32,6.831]
[1750833457048,6.8299,146.35,146.32,6.831]
[1750833457745,44.91111138,146.36,146.33,6.8307]
[1750833458340,38.08151138,146.36,146.33,6.8307]
[1750833458845,6.8299,146.35,146.32,6.831]
[1750833460044,44.91101138,146.36,146.33,6.8307]
[1750833460353,2.15130115,146.34,146.33,6.8307]
[1750833463845,2.15130115,146.34,146.32,6.831]
[1750833465638,2.15130115,146.33,146.32,6.831]
[1750833472246,2.15130115,146.34,146.33,6.8307]
[1750833473345,34.72,146.36,146.32,2.15130115]
[1750833473560,34.72,146.36,146.33,2.15130115]
[1750833473944,2.15130115,146.37,146.35,6.8296]
[1750833474245,7.61948786,146.36,146.33,2.15130115]
[1750833474439,2.15130115,146.34,146.33,6.8305]
[1750833475440,2.15130115,146.34,146.32,6.831]
[1750833475639,8.98160115,146.34,146.32,6.831]
[1750833475845,2.15130115,146.33,146.3,4.5054]
[1750833476044,2.15130115,146.33,146.29,36.81130115]
[1750833476842,2.15130115,146.33,146.31,6.8315]
[1750833478650,41.4901,146.35,146.3,2.15130115]
[1750833478845,36.81130115,146.35,146.31,2.15130115]
[1750833479051,36.81130115,146.35,146.33,6.8305]
[1750833479253,34.66,146.35,146.32,2.15130115]
[1750833479560,2.15130115,146.36,146.32,2.15130115]
[1750833479951,7.62541207,146.36,146.32,2.15130115]
[1750833480152,7.62541207,146.37,146.33,2.15130115]
[1750833480353,5.47411092,146.36,146.33,3.35988172]
[1750833480654,34.64,146.38,146.37,6.8289]
[1750833481060,34.64,146.41,146.35,3.35988172]
[1750833481262,5.47381752,146.4,146.37,3.35988172]
[1750833481563,3.35988172,146.41,146.35,2.1812]
[1750833481751,3.35988172,146.41,146.36,6.8293]
[1750833481952,34.64,146.4,146.34,2.3951]
[1750833482151,10.18808172,146.39,146.34,2.3951]
[1750833482352,10.18808172,146.39,146.35,6.8295]
[1750833482558,10.18808172,146.39,146.34,2.3951]
[1750833483152,10.18808172,146.39,146.36,6.8293]
[1750833483348,6.8284,146.38,146.34,2.3951]
[1750833483856,6.8284,146.38,146.35,6.8296]
[1750833484264,10.18808172,146.39,146.35,6.8296]
[1750833485163,6.8285,146.38,146.35,6.8296]
[1750833485463,3.35988172,146.39,146.35,6.8296]
[1750833485664,3.35988172,146.39,146.36,6.8294]
[1750833486966,34.64,146.4,146.36,6.8294]
[1750833487263,37.99988172,146.4,146.36,6.8294]
[1750833488365,6.828,146.39,146.36,6.8294]
[1750833489460,6.8286,146.38,146.35,6.8296]
[1750833490168,6.8282,146.39,146.35,6.8296]
[1750833491369,6.8285,146.38,146.31,48.58389062]
[1750833491769,6.8285,146.38,146.35,6.8294]
[1750833492870,10.18808172,146.39,146.31,48.58389062]
[1750833493471,6.8286,146.38,146.35,6.8295]
[1750833497677,3.35988172,146.39,146.31,45.2240089]
[1750833497876,3.35988172,146.39,146.31,48.58389062]
[1750833498076,3.35988172,146.39,146.31,40.16108172]
[1750833498273,6.8297,146.36,146.33,6.8305]
[1750833498484,3.35988172,146.37,146.31,34.62]
[1750833498780,3.35988172,146.35,146.29,2.183]
[1750833498973,6.8307,146.34,146.31,6.8314]
[1750833500180,6.8307,146.34,146.32,6.8312]
[1750833500479,37.97988172,146.35,146.32,6.8312]
[1750833501279,44.80968172,146.35,146.32,6.8312]
[1750833502180,34.62,146.35,146.33,6.8308]
[1750833505175,34.62,146.35,146.34,6.8303]
[1750833507794,34.62,146.35,146.33,6.8306]
[1750833510283,34.62,146.35,146.32,6.8311]
[1750833511183,34.62,146.35,146.33,6.8306]
[1750833513091,41.4499,146.35,146.32,6.8311]
[1750833516097,41.4499,146.35,146.33,6.8308]
[1750833517800,34.62,146.35,146.33,6.8308]
[1750833518802,34.62,146.35,146.34,6.8303]
[1750833528014,34.6,146.38,146.37,6.8289]
[1750833530320,34.6,146.41,146.4,6.8274]
[1750833531618,34.6,146.41,146.36,3.35858227]
[1750833531619,34.6,146.41,146.34,10.6335089]
[1750833531818,34.6,146.41,146.34,2.2107]
[1750833532017,41.427,146.41,146.34,2.2107]
[1750833532218,41.427,146.41,146.37,6.8286]
[1750833532817,6.8276,146.4,146.37,6.8286]
[1750833534526,6.8281,146.39,146.37,6.8286]
[1750833538335,37.95858227,146.41,146.37,6.8286]
[1750833538336,6.8277,146.4,146.37,6.8286]
[1750833541730,3.35858227,146.39,146.34,2.2107]
[1750833541923,3.35858227,146.39,146.32,39.2886]
[1750833542432,6.8287,146.38,146.35,6.8296]
[1750833543826,6.8295,146.36,146.32,39.2886]
[1750833544127,34.54,146.37,146.32,4.6886]
[1750833544329,6.8294,146.36,146.33,6.8305]
[1750833545029,6.8294,146.36,146.33,6.8307]
[1750833546130,6.8294,146.36,146.34,6.8303]
[1750833547832,6.8294,146.36,146.32,4.6886]
[1750833547833,6.8294,146.36,146.33,6.8305]
[1750833548935,6.83,146.35,146.32,9.1374]
[1750833549139,6.83,146.35,146.32,6.8311]
[1750833550222,2.15144575,146.33,146.29,2.15144575]
[1750833550430,34.54,146.37,146.28,4.35174575]
[1750833550431,2.15144575,146.32,146.28,4.35174575]
[1750833550732,8.98294575,146.32,146.29,6.8324]
[1750833551724,2.15144575,146.31,146.29,6.8324]
[1750833551926,43.52234575,146.33,146.28,4.35174575]
[1750833552230,41.3709,146.33,146.28,2.2003]
[1750833552430,2.2148,146.37,146.29,3.36187402]
[1750833552431,34.54,146.36,146.29,3.36187402]
[1750833552633,34.54,146.36,146.29,11.78468292]
[1750833552832,34.54,146.36,146.31,3.36187402]
[1750833553232,34.54,146.36,146.31,7.93767402]
[1750833554036,34.54,146.36,146.34,6.83]
[1750833556125,34.54,146.36,146.31,7.93767402]
[1750833556935,34.54,146.36,146.35,6.8298]
[1750833558433,34.54,146.36,146.34,6.8301]
[1750833559141,41.3697,146.36,146.33,6.8306]
[1750833564946,6.8299,146.35,146.33,6.8306]
[1750833565148,34.54,146.36,146.33,6.8306]
[1750833565651,41.3696,146.36,146.33,6.8306]
[1750833565845,34.54,146.36,146.32,6.831]
[1750833566240,6.8301,146.35,146.32,6.831]
[1750833567650,6.8301,146.35,146.33,6.8308]
[1750833568248,44.73147402,146.36,146.33,6.8308]
[1750833570740,44.73147402,146.36,146.34,6.8303]
[1750833571637,34.54,146.36,146.35,6.8298]
[1750833573445,2.15038639,146.38,146.37,6.8289]
[1750833573646,34.5,146.39,146.35,2.15038639]
[1750833574041,34.5,146.39,146.38,6.8284]
[1750833577557,34.5,146.39,146.37,6.8287]
[1750833581749,41.3281,146.39,146.37,6.8287]
[1750833583857,41.3281,146.39,146.36,6.8292]
[1750833586261,8.06547322,146.43,146.35,3.35887322]
[1750833586461,39.2066,146.43,146.35,3.35887322]
[1750833586667,39.2066,146.43,146.36,3.35887322]
[1750833586963,6.8273,146.41,146.38,6.8282]
[1750833587858,6.8275,146.4,146.37,6.8287]
[1750833588468,6.8282,146.39,146.36,6.8294]
[1750833590065,6.8285,146.38,146.36,6.8294]
[1750833591470,6.8285,146.38,146.33,14.05948212]
[1750833591471,6.829,146.37,146.32,8.4228089]
[1750833592067,6.829,146.37,146.34,6.8299]
[1750833592372,6.829,146.37,146.32,8.4228089]
[1750833593373,6.829,146.37,146.33,6.8305]
[1750833593670,6.8295,146.36,146.31,34.5]
[1750833594170,6.8295,146.36,146.34,6.8303]
[1750833594471,3.35887322,146.38,146.31,34.5]
[1750833595074,34.5,146.39,146.31,42.9228089]
[1750833595268,34.5,146.39,146.31,46.28168212]
[1750833595774,34.5,146.39,146.31,37.85887322]
[1750833596067,34.5,146.39,146.31,46.28168212]
[1750833596576,6.8287,146.38,146.35,6.8297]
[1750833597376,6.8287,146.38,146.36,6.8293]
[1750833597869,44.68707322,146.39,146.36,6.8293]
[1750833599379,34.5,146.39,146.33,3.35887322]
[1750833599771,34.5,146.39,146.37,6.8289]
[1750833600280,34.5,146.39,146.33,3.35887322]
[1750833600473,44.68687322,146.39,146.32,10.6730089]
[1750833600671,37.85887322,146.39,146.32,2.2502]
[1750833600871,37.85887322,146.39,146.32,10.6730089]
[1750833601071,44.68697322,146.39,146.36,6.8291]
[1750833601471,37.85887322,146.39,146.37,6.8286]
[1750833602279,2.14994923,146.38,146.36,6.8292]
[1750833604488,8.97844923,146.38,146.35,6.8295]
[1750833604780,2.14994923,146.37,146.35,6.8295]
[1750833606080,8.97884923,146.37,146.34,6.8301]
[1750833606387,2.14994923,146.36,146.34,6.8301]
[1750833606587,8.97934923,146.36,146.32,2.14994923]
[1750833606781,8.97934923,146.36,146.33,6.8306]
[1750833606982,2.14994923,146.36,146.33,6.8306]
[1750833608180,6.8299,146.35,146.33,6.8306]
[1750833608687,8.97954923,146.36,146.33,6.8306]
[1750833609482,2.14994923,146.37,146.33,2.14994923]
[1750833610189,8.97914923,146.37,146.34,6.83]
[1750833611683,6.8295,146.36,146.33,6.8306]
[1750833611888,2.14994923,146.36,146.32,2.14994923]
[1750833612789,34.5,146.39,146.35,2.14994923]
[1750833612790,2.14994923,146.38,146.35,2.14994923]
[1750833612998,2.14994923,146.38,146.36,6.8293]
[1750833613486,43.47814923,146.39,146.36,6.8293]
[1750833615885,43.47814923,146.39,146.37,6.8288]
[1750833616088,43.47814923,146.39,146.35,2.14994923]
[1750833616392,43.47814923,146.39,146.36,6.8291]
[1750833616595,2.14994923,146.38,146.35,2.14994923]
[1750833616787,36.64994923,146.39,146.35,2.14994923]
[1750833617681,36.64994923,146.39,146.37,6.8285]
[1750833618488,43.47804923,146.39,146.35,2.14994923]
[1750833618691,36.64994923,146.39,146.35,2.14994923]
[1750833619290,36.64994923,146.39,146.37,6.8287]
[1750833620195,43.47804923,146.39,146.37,6.8287]
[1750833620395,43.47804923,146.39,146.36,6.8292]
[1750833621291,43.47804923,146.39,146.37,6.8289]
[1750833621594,592.3823,146.44,146.35,2.14994923]
[1750833621891,2.14994923,146.41,146.38,6.8281]
[1750833622091,8.97744923,146.41,146.38,6.8281]
[1750833622690,2.14994923,146.41,146.38,6.8281]
[1750833623793,2.14994923,146.4,146.38,6.8281]
[1750833624090,8.97764923,146.4,146.37,6.8287]
[1750833624595,2.14994923,146.39,146.37,6.8287]
[1750833626798,8.97764923,146.4,146.37,6.8287]
[1750833628194,8.97764923,146.4,146.38,6.8284]
[1750833629803,8.97764923,146.4,146.37,6.8286]
[1750833631799,2.14994923,146.39,146.37,6.8286]
[1750833635398,8.97764923,146.4,146.38,6.8284]
[1750833636301,2.14994923,146.4,146.38,6.8284]
[1750833636493,2.14994923,146.4,146.36,2.14994923]
[1750833637297,6.8268,146.42,146.37,2.14994923]
[1750833637504,8.97674923,146.42,146.37,2.14994923]
[1750833637702,8.97674923,146.42,146.39,6.8276]
[1750833637997,41.2662,146.43,146.38,2.14994923]
[1750833638198,2.14994923,146.42,146.38,2.14994923]
[1750833638995,2.14994923,146.42,146.4,6.8274]
[1750833641015,2.14994923,146.41,146.36,2.14994923]
[1750833641206,34.44,146.43,146.37,2.14994923]
[1750833641507,2.14994923,146.41,146.37,2.14994923]
[1750833642008,2.14994923,146.4,146.35,47.4468089]
[1750833642307,2.14994923,146.39,146.37,6.8285]
[1750833642803,2.14994923,146.38,146.37,6.8285]
[1750833643302,2.14994923,146.38,146.36,6.8292]
[1750833643898,2.14994923,146.38,146.35,6.8296]
[1750833644103,2.14994923,146.37,146.35,6.8296]
[1750833646206,2.14994923,146.36,146.3,15.22775813]
[1750833646507,2.14994923,146.34,146.3,13.0778089]
[1750833646703,2.14994923,146.33,146.29,8.4228089]
[1750833646910,2.14994923,146.32,146.29,8.4228089]
[1750833647105,2.14994923,146.32,146.28,111.5024355]
[1750833647310,2.14994923,146.32,146.31,6.8317]
[1750833647513,34.4,146.34,146.29,2.14994923]
[1750833647712,34.4,146.34,146.3,2.14994923]
[1750833647907,36.54994923,146.34,146.3,2.14994923]
[1750833648303,34.4,146.34,146.33,6.8308]
[1750833651113,4.4569,146.37,146.3,8.4228089]
[1750833651114,34.4,146.37,146.36,6.829]
[1750833660641,34.4,146.37,146.35,6.8296]
[1750833664639,41.229,146.37,146.34,6.8301]
[1750833664943,37.76116737,146.37,146.31,4.3778]
[1750833665844,44.59026737,146.37,146.34,6.8299]
[1750833666742,6.8295,146.36,146.33,6.8306]
[1750833666939,37.76116737,146.37,146.29,8.4228089]
[1750833667146,3.36116737,146.35,146.28,109.35248627]
[1750833667332,3.36116737,146.35,146.27,48.48327627]
[1750833667536,3.36116737,146.33,146.27,48.48327627]
[1750833667736,37.72116737,146.33,146.27,48.48327627]
[1750833667946,37.72116737,146.33,146.31,6.8314]
[1750833668441,6.8321,146.31,146.25,8.4228089]
[1750833668739,3.36116737,146.3,146.24,10.6373089]
[1750833668940,3.36116737,146.32,146.25,11.78397627]
[1750833669142,3.36116737,146.34,146.27,3.36116737]
[1750833669345,34.36,146.33,146.27,3.36116737]
[1750833669540,34.36,146.33,146.32,6.8312]
[1750833676452,37.72116737,146.36,146.35,6.8298]
[1750833681655,37.72116737,146.36,146.34,6.8301]
[1750833681956,37.72116737,146.36,146.27,4.8027]
[1750833682161,3.36116737,146.33,146.27,4.8027]
[1750833682758,3.36116737,146.33,146.31,6.8314]
[1750833683953,10.19216737,146.33,146.3,6.8319]
[1750833684857,6.8313,146.32,146.3,6.8319]
[1750833685063,41.1913,146.32,146.29,6.8324]
[1750833685455,34.36,146.32,146.3,6.8319]
[1750833686559,41.1915,146.32,146.29,6.8325]
[1750833689256,3.36116737,146.31,146.26,8.4228089]
[1750833689459,3.36116737,146.31,146.24,14.86191123]
[1750833689460,3.36116737,146.29,146.24,8.4228089]
[1750833689649,3.36116737,146.29,146.23,42.7828089]
[1750833689856,6.8335,146.28,146.25,6.8343]
[1750833691149,6.8336,146.27,146.25,6.8343]
[1750833691350,10.19476737,146.27,146.25,6.8343]
[1750833691753,10.19476737,146.27,146.24,6.8348]
[1750833694265,10.19476737,146.27,146.25,6.8344]
[1750833694463,10.19476737,146.27,146.22,2.3788]
[1750833694963,10.19476737,146.27,146.24,6.8347]
[1750833695165,6.8342,146.26,146.2,42.30636737]
[1750833695363,6.8342,146.26,146.23,6.8354]
[1750833696464,6.8338,146.27,146.23,6.8354]
[1750833696652,10.19496737,146.27,146.24,6.835]
[1750833697563,3.36116737,146.27,146.25,6.8345]
[1750833697868,3.36116737,146.27,146.2,42.30636737]
[1750833698259,3.36116737,146.27,146.2,50.72917627]
[1750833698561,3.36116737,146.27,146.2,42.30636737]
[1750833698763,3.36116737,146.27,146.25,6.8342]
[1750833703666,34.36,146.28,146.2,42.30636737]
[1750833703858,34.36,146.28,146.21,8.4228089]
[1750833704258,41.1932,146.28,146.26,6.8337]
[1750833705365,34.36,146.28,146.27,6.8336]
[1750833705763,34.34,146.3,146.24,3.36116737]